fUST/lending_fUST_20250311
["ID","MTS","AMOUNT","RATE_DAILY","PERIOD"]
[355870794,1741657846303,-500.0,0.00049863,120]
[355870797,1741657846313,-500.0,0.00049863,120]
[355870800,1741657846323,-500.0,0.00049863,120]
[355870803,1741657846333,-530.66512449,0.00049863,120]
[355870804,1741657846343,-520.60396189,0.00049863,120]
[355870805,1741657846352,-1637.46,0.00049863,120]
[355870806,1741657846362,-1386.63,0.00049863,120]
[355870808,1741657846372,-500.0,0.00049863,120]
[355870809,1741657846382,-500.0,0.00049863,120]
[355870810,1741657846392,-500.0,0.00049863,120]
[355870811,1741657846402,-500.0,0.00049863,2]
[355870812,1741657846411,-500.0,0.00049863,120]
[355870813,1741657846422,-529.59642747,0.00049863,120]
[355870815,1741657846432,-500.0,0.00049863,120]
[355870816,1741657846441,-609.89,0.00049863,120]
[355870817,1741657846451,-8033.13,0.00049863,120]
[355870818,1741657846461,-500.0,0.00049863,120]
[355870819,1741657846470,-1262.23,0.00049863,120]
[355870820,1741657846480,-673.32,0.00049863,2]
[355870821,1741657846489,-500.0,0.00049863,120]
[355870822,1741657846499,-779.03,0.00049863,120]
[355870823,1741657846508,-500.0,0.00049863,120]
[355870824,1741657846518,-630.57,0.00049863,120]
[355870825,1741657846527,-500.0,0.00049863,120]
[355870826,1741657846537,-174.86086746,0.00049863,10]
[355870827,1741657846546,-611.24025398,0.00049865,120]
[355870828,1741657846556,-300.0,0.000499,27]
[355870829,1741657846565,-500.0,0.00049945,6]
[355870830,1741657846575,-248.0,0.00049945,6]
[355870832,1741657846585,-515.63536012,0.00049947,120]
[355870834,1741657846595,-667.06423747,0.00049956,92]
[355870836,1741657846606,-500.0,0.0004999,18]
[355870838,1741657846616,-202.23996751,0.00049994,28]
[355870840,1741657846625,-2000.0,0.0005,120]
[355870841,1741657846635,-5000.0,0.0005,120]
[355870843,1741657846644,-504.2,0.0005,30]
[355870844,1741657846654,-1834.3383,0.0005,120]
[355870845,1741657846663,-667.06423747,0.00050056,99]
[355870846,1741657846676,-408.42502168,0.000501,30]
[355870847,1741657846686,-742.31518123,0.00050118,2]
[355870848,1741657846695,-500.0,0.00050136,120]
[355870849,1741657846705,-500.0,0.00050136,120]
[355870850,1741657846714,-500.0,0.00050136,120]
[355870851,1741657846724,-500.0,0.00050136,120]
[355870852,1741657846733,-3795.29,0.00050136,120]
[355870853,1741657846743,-615.3,0.00050136,30]
[355870854,1741657846752,-924.4,0.00050136,120]
[355870855,1741657846761,-500.0,0.00050136,120]
[355870856,1741657846771,-500.0,0.00050136,120]
[355870857,1741657846780,-404.58388156,0.00050136,120]
[355870858,1741657846790,-922.04,0.00050136,120]
[355870859,1741657846799,-500.0,0.00050136,120]
[355870860,1741657846808,-500.0,0.00050136,120]
[355870861,1741657846818,-4653.91,0.00050136,120]
[355870862,1741657846827,-317.43756647,0.00050136,120]
[355870863,1741657846837,-1203.33,0.00050136,120]
[355870864,1741657846847,-1343.49,0.00050136,120]
[355870865,1741657846858,-1378.11,0.00050136,120]
[355870866,1741657846868,-500.0,0.00050136,120]
[355870867,1741657846878,-895.9,0.00050136,120]
[355870868,1741657846888,-923.2,0.00050136,120]
[355870869,1741657846897,-500.0,0.00050136,120]
[355870870,1741657846907,-500.0,0.00050136,120]
[355870871,1741657846917,-6191.64,0.00050136,120]
[355870872,1741657846929,-855.67,0.00050136,120]
[355870873,1741657846939,-200.0,0.00050136,7]
[355870874,1741657846949,-965.61,0.00050136,120]
[355870875,1741657846958,-16430.21,0.00050136,2]
[355870876,1741657846968,-500.0,0.00050136,120]
[355870877,1741657846977,-500.0,0.00050136,120]
[355870878,1741657846987,-500.0,0.00050136,120]
[355870879,1741657846996,-532.2337279,0.00050136,120]
[355870880,1741657847006,-500.0,0.00050136,120]
[355870881,1741657847015,-500.0,0.00050136,120]
[355870882,1741657847025,-1637.46,0.00050136,120]
[355870883,1741657847035,-1386.63,0.00050136,120]
[355870884,1741657847044,-500.0,0.00050136,120]
[355870885,1741657847054,-500.0,0.00050136,120]
[355870886,1741657847064,-500.0,0.00050136,120]
[355870887,1741657847073,-500.0,0.00050136,2]
[355870888,1741657847083,-500.0,0.00050136,120]
[355870889,1741657847092,-500.0,0.00050136,120]
[355870890,1741657847102,-609.89,0.00050136,120]
[355870891,1741657847111,-8033.13,0.00050136,120]
[355870892,1741657847123,-500.0,0.00050136,120]
[355870893,1741657847134,-1262.23,0.00050136,120]
[355870894,1741657847147,-673.32,0.00050136,2]
[355870895,1741657847157,-500.0,0.00050136,120]
[355870896,1741657847168,-779.03,0.00050136,120]
[355870897,1741657847180,-500.0,0.00050136,120]
[355870898,1741657847189,-630.57,0.00050136,120]
[355870899,1741657847199,-155.417131,0.00050137,30]
[355870900,1741657847209,-155.3619476,0.00050137,30]
[355870901,1741657847220,-667.06423747,0.00050156,95]
[355870902,1741657847229,-667.06423747,0.00050256,95]
[355870903,1741657847239,-165.68521461,0.0005029,2]
[355870904,1741657847248,-610.93,0.000503,48]
[355870905,1741657847258,-610.93,0.000503,48]
[355870906,1741657847267,-610.93,0.000503,48]
[355870907,1741657847277,-610.93,0.000503,48]
[355870908,1741657847288,-610.93,0.000503,48]
[355870909,1741657847297,-610.93,0.000503,48]
[355870910,1741657847307,-610.93,0.000503,48]
[355870911,1741657847316,-610.93,0.000503,48]
[355870912,1741657847326,-610.93,0.000503,48]
[355870913,1741657847335,-610.93,0.000503,48]
[355870914,1741657847345,-610.93,0.000503,48]
[355870915,1741657847354,-610.93,0.000503,48]
[355870916,1741657847364,-166.0,0.00050319,30]
[355870917,1741657847373,-166.0,0.00050319,30]
[355870918,1741657847383,-166.0,0.00050319,30]
[355870919,1741657847392,-166.0,0.00050319,30]
[355870920,1741657847402,-316.0,0.00050319,30]
[355870921,1741657847411,-316.0,0.00050319,30]
[355870922,1741657847421,-316.0,0.00050319,30]
[355870923,1741657847431,-352.0,0.00050319,30]
[355870924,1741657847440,-352.0,0.00050319,30]
[355870925,1741657847450,-316.0,0.00050319,30]
[355870926,1741657847460,-352.0,0.00050319,30]
[355870927,1741657847470,-316.0,0.00050319,30]
[355870928,1741657847479,-352.0,0.00050319,30]
[355870929,1741657847489,-316.0,0.00050319,30]
[355870930,1741657847499,-352.0,0.00050319,30]
[355870931,1741657847508,-316.0,0.00050319,30]
[355870932,1741657847518,-316.0,0.00050319,30]
[355870933,1741657847527,-352.0,0.00050319,30]
[355870934,1741657847537,-316.0,0.00050319,30]
[355870935,1741657847546,-352.0,0.00050319,30]
[355870936,1741657847556,-316.0,0.00050319,30]
[355870937,1741657847565,-352.0,0.00050319,30]
[355870938,1741657847574,-316.0,0.00050319,30]
[355870939,1741657847585,-352.0,0.00050319,30]
[355870940,1741657847594,-316.0,0.00050319,30]
[355870941,1741657847604,-352.0,0.00050319,30]
[355870942,1741657847614,-316.0,0.00050319,30]
[355870943,1741657847623,-352.0,0.00050319,30]
[355870944,1741657847632,-316.0,0.00050319,30]
[355870945,1741657847642,-352.0,0.00050319,30]
[355870946,1741657847651,-316.0,0.00050319,30]
[355870947,1741657847660,-352.0,0.00050319,30]
[355870948,1741657847671,-252.83410424,0.00050319,30]
[355870949,1741657847680,-352.0,0.00050319,30]
[355870950,1741657847689,-352.0,0.00050319,30]
[355870951,1741657847699,-352.0,0.00050319,30]
[355870952,1741657847708,-352.0,0.00050319,30]
[355870953,1741657847717,-352.0,0.00050319,30]
[355870954,1741657847727,-352.0,0.00050319,30]
[355870955,1741657847736,-352.0,0.00050319,30]
[355870956,1741657847746,-352.0,0.00050319,30]
[355870957,1741657847755,-352.0,0.00050319,30]
[355870958,1741657847764,-352.0,0.00050319,30]
[355870959,1741657847774,-352.0,0.00050319,30]
[355870960,1741657847783,-352.0,0.00050319,30]
[355870961,1741657847792,-300.0,0.00050319,30]
[355870962,1741657847961,-168.0,0.00050319,30]
[355870963,1741657847973,-168.0,0.00050319,30]
[355870964,1741657847983,-168.0,0.00050319,30]
[355870965,1741657847994,-299.20946297,0.00050319,30]
[355870966,1741657848004,-352.0,0.00050319,30]
[355870967,1741657848014,-352.0,0.00050319,30]
[355870968,1741657848024,-352.0,0.00050319,30]
[355870969,1741657848034,-352.0,0.00050319,30]
[355870970,1741657848043,-352.0,0.00050319,30]
[355870971,1741657848052,-352.0,0.00050319,30]
[355870972,1741657848062,-316.0,0.00050319,30]
[355870973,1741657848071,-316.0,0.00050319,30]
[355870974,1741657848080,-316.0,0.00050319,30]
[355870975,1741657848089,-352.0,0.00050319,30]
[355870976,1741657848098,-316.0,0.00050319,30]
[355870977,1741657848108,-352.0,0.00050319,30]
[355870978,1741657848120,-316.0,0.00050319,30]
[355870979,1741657848130,-352.0,0.00050319,30]
[355870980,1741657848139,-316.0,0.00050319,30]
[355870981,1741657848149,-352.0,0.00050319,30]
[355870982,1741657848160,-316.0,0.00050319,30]
[355870983,1741657848169,-352.0,0.00050319,30]
[355870984,1741657848180,-316.0,0.00050319,30]
[355870985,1741657848190,-352.0,0.00050319,30]
[355870986,1741657848200,-316.0,0.00050319,30]
[355870987,1741657848210,-352.0,0.00050319,30]
[355870988,1741657848219,-316.0,0.00050319,30]
[355870989,1741657848230,-352.0,0.00050319,30]
[355870990,1741657848239,-352.0,0.00050319,30]
[355870991,1741657848249,-316.0,0.00050319,30]
[355870992,1741657848259,-352.0,0.00050319,30]
[355870993,1741657848268,-316.0,0.00050319,30]
[355870994,1741657848278,-352.0,0.00050319,30]
[355870995,1741657848289,-316.0,0.00050319,30]
[355870996,1741657848300,-352.0,0.00050319,30]
[355870997,1741657848311,-316.0,0.00050319,30]
[355870998,1741657848322,-352.0,0.00050319,30]
[355870999,1741657848334,-316.0,0.00050319,30]
[355871000,1741657848344,-352.0,0.00050319,30]
[355871001,1741657848355,-316.0,0.00050319,30]
[355871002,1741657848365,-352.0,0.00050319,30]
[355871003,1741657848375,-166.21568885,0.00050319,30]
[355871004,1741657848384,-352.0,0.00050319,30]
[355871005,1741657848395,-352.0,0.00050319,30]
[355871006,1741657848405,-352.0,0.00050319,30]
[355871007,1741657848414,-352.0,0.00050319,30]
[355871008,1741657848426,-352.0,0.00050319,30]
[355871009,1741657848436,-352.0,0.00050319,30]
[355871010,1741657848446,-352.0,0.00050319,30]
[355871011,1741657848455,-352.0,0.00050319,30]
[355871012,1741657848465,-352.0,0.00050319,30]
[355871013,1741657848474,-352.0,0.00050319,30]
[355871014,1741657848484,-352.0,0.00050319,30]
[355871015,1741657848494,-352.0,0.00050319,30]
[355871016,1741657848504,-352.0,0.00050319,30]
[355871017,1741657848514,-352.0,0.00050319,30]
[355871018,1741657848524,-190.74357343,0.00050319,30]
[355871019,1741657848534,-1490.917966,0.0005032,22]
[355871020,1741657848543,-159.498638,0.00050333,2]
[355871021,1741657848553,-1000.0,0.0005034,22]
[355871022,1741657848563,-667.06423747,0.00050356,92]
[355871023,1741657848573,-1000.0,0.0005036,22]
[355871024,1741657848582,-150.0,0.00050373,7]
[355871025,1741657848592,-150.0,0.00050373,10]
[355871026,1741657848601,-150.0,0.00050373,10]
[355871027,1741657848611,-290.03166611,0.00050373,10]
[355871028,1741657848621,-1000.0,0.0005038,22]
[355871029,1741657848631,-150.0,0.00050393,14]
[355871030,1741657848640,-289.61861821,0.00050393,14]
[355871031,1741657848650,-1000.0,0.000504,22]
[355871032,1741657848659,-50206.0,0.000504,120]
[355871033,1741657848669,-50000.0,0.000504,8]
[355871034,1741657848679,-500.0,0.0005041,120]
[355871035,1741657848689,-500.0,0.0005041,120]
[355871036,1741657848698,-500.0,0.0005041,120]
[355871037,1741657848708,-500.0,0.0005041,120]
[355871038,1741657848717,-615.3,0.0005041,30]
[355871039,1741657848726,-3795.29,0.0005041,120]
[355871040,1741657848737,-924.4,0.0005041,120]
[355871041,1741657848746,-500.0,0.0005041,120]
[355871042,1741657848756,-500.0,0.0005041,120]
[355871043,1741657848766,-922.04,0.0005041,120]
[355871044,1741657848775,-500.0,0.0005041,120]
[355871045,1741657848785,-500.0,0.0005041,120]
[355871046,1741657848794,-4653.91,0.0005041,120]
[355871047,1741657848804,-1203.33,0.0005041,120]
[355871048,1741657848813,-1343.49,0.0005041,120]
[355871049,1741657848823,-1378.11,0.0005041,120]
[355871050,1741657848833,-500.0,0.0005041,120]
[355871051,1741657848842,-895.9,0.0005041,120]
[355871052,1741657848852,-923.2,0.0005041,120]
[355871053,1741657848861,-500.0,0.0005041,120]
[355871054,1741657848871,-500.0,0.0005041,120]
[355871055,1741657848881,-6191.64,0.0005041,120]
[355871056,1741657848891,-855.67,0.0005041,120]
[355871057,1741657848901,-215.74228538,0.0005041,7]
[355871058,1741657848910,-965.61,0.0005041,120]
[355871059,1741657848920,-16430.21,0.0005041,2]
[355871060,1741657848930,-500.0,0.0005041,120]
[355871061,1741657848940,-500.0,0.0005041,120]
[355871062,1741657848951,-500.0,0.0005041,120]
[355871063,1741657848962,-500.0,0.0005041,120]
[355871064,1741657848972,-1637.46,0.0005041,120]
[355871065,1741657848981,-1386.63,0.0005041,120]
[355871066,1741657848991,-484.76234455,0.0005041,120]
[355871067,1741657849000,-500.0,0.0005041,120]
[355871068,1741657849010,-500.0,0.0005041,120]
[355871069,1741657849020,-500.0,0.0005041,2]
[355871070,1741657849030,-500.0,0.0005041,120]
[355871071,1741657849040,-500.0,0.0005041,120]
[355871072,1741657849050,-609.89,0.0005041,120]
[355871073,1741657849060,-8033.13,0.0005041,120]
[355871074,1741657849071,-500.0,0.0005041,120]
[355871075,1741657849080,-1262.23,0.0005041,120]
[355871076,1741657849090,-673.32,0.0005041,2]
[355871077,1741657849100,-500.0,0.0005041,120]
[355871078,1741657849110,-779.03,0.0005041,120]
[355871079,1741657849120,-500.0,0.0005041,120]
[355871080,1741657849130,-630.57,0.0005041,120]
[355871081,1741657849141,-1000.0,0.0005042,22]
[355871082,1741657849152,-1000.0,0.0005044,22]
[355871083,1741657849161,-500.0,0.00050454,120]
[355871084,1741657849172,-667.06423747,0.00050456,95]
[355871085,1741657849182,-1000.0,0.0005046,22]
[355871086,1741657849192,-1000.0,0.0005048,22]
[355871087,1741657849202,-1075.222602,0.0005048,22]
[355871088,1741657849212,-292.0,0.00050486,120]
[355871089,1741657849223,-150.0,0.00050492,14]
[355871090,1741657849233,-150.0,0.00050492,14]
[355871091,1741657849243,-1384.39317137,0.00050499,120]
[355871092,1741657849253,-410.0,0.000505,30]
[355871093,1741657849263,-1000.0,0.000505,22]
[355871094,1741657849273,-1000.0,0.000505,22]
[355871095,1741657849282,-6072.08913615,0.000505,120]
[355871096,1741657849292,-667.06423747,0.00050556,90]
[355871097,1741657849301,-3357.55,0.000506,30]
[355871098,1741657849311,-504.2,0.000506,30]
[355871099,1741657849321,-667.06423747,0.00050656,97]
[355871100,1741657849330,-55555.0,0.00050666,120]
[355871101,1741657849340,-10655.30035521,0.00050676,2]
[355871102,1741657849350,-1706.77,0.00050684,7]
[355871103,1741657849360,-500.0,0.00050684,120]
[355871104,1741657849370,-500.0,0.00050684,120]
[355871105,1741657849380,-500.0,0.00050684,120]
[355871106,1741657849390,-500.0,0.00050684,120]
[355871107,1741657849400,-615.3,0.00050684,30]
[355871108,1741657849410,-3795.29,0.00050684,120]
[355871109,1741657849422,-924.4,0.00050684,120]
[355871110,1741657849432,-500.0,0.00050684,120]
[355871111,1741657849443,-500.0,0.00050684,120]
[355871112,1741657849452,-922.04,0.00050684,120]
[355871113,1741657849462,-500.0,0.00050684,120]
[355871114,1741657849471,-500.0,0.00050684,120]
[355871115,1741657849481,-4653.91,0.00050684,120]
[355871116,1741657849490,-1203.33,0.00050684,120]
[355871117,1741657849500,-1343.49,0.00050684,120]
[355871118,1741657849509,-1378.11,0.00050684,120]
[355871119,1741657849519,-500.0,0.00050684,120]
[355871120,1741657849528,-895.9,0.00050684,120]
[355871121,1741657849538,-923.2,0.00050684,120]
[355871122,1741657849547,-500.0,0.00050684,120]
[355871123,1741657849556,-500.0,0.00050684,120]
[355871124,1741657849566,-6191.64,0.00050684,120]
[355871125,1741657849575,-855.67,0.00050684,120]
[355871126,1741657849584,-965.61,0.00050684,120]
[355871127,1741657849594,-16430.21,0.00050684,2]
[355871128,1741657849603,-500.0,0.00050684,120]
[355871129,1741657849613,-500.0,0.00050684,120]
[355871130,1741657849623,-500.0,0.00050684,120]
[355871131,1741657849634,-500.0,0.00050684,120]
[355871132,1741657849643,-1637.46,0.00050684,120]
[355871133,1741657849653,-1386.63,0.00050684,120]
[355871134,1741657849663,-500.0,0.00050684,120]
[355871135,1741657849674,-270.0743652,0.00050684,120]
[355871136,1741657849683,-500.0,0.00050684,2]
[355871137,1741657849692,-500.0,0.00050684,120]
[355871138,1741657849702,-500.0,0.00050684,120]
[355871139,1741657849711,-609.89,0.00050684,120]
[355871140,1741657849873,-8033.13,0.00050684,120]
[355871141,1741657849884,-500.0,0.00050684,120]
[355871142,1741657849894,-1262.23,0.00050684,120]
[355871143,1741657849904,-673.32,0.00050684,2]
[355871144,1741657849914,-500.0,0.00050684,120]
[355871145,1741657849926,-779.03,0.00050684,120]
[355871146,1741657849936,-500.0,0.00050684,120]
[355871147,1741657849946,-630.57,0.00050684,120]
[355871148,1741657849955,-827.92256176,0.00050748,30]
[355871149,1741657849966,-667.06423747,0.00050756,99]
[355871150,1741657849975,-500.0,0.0005077,15]
[355871151,1741657849985,-570.80351571,0.00050773,7]
[355871152,1741657849995,-427.82992586,0.00050773,10]
[355871153,1741657850004,-500.0,0.00050773,10]
[355871154,1741657850014,-691332.35310433,0.00050776,30]
[355871155,1741657850390,-523.91359633,0.00049315,120]
[355871156,1741657850400,-500.0,0.00049315,120]
[355871157,1741657850410,-637.9,0.00049315,120]
[355871158,1741657850420,-530.68,0.00049315,120]
[355871159,1741657850431,-500.0,0.00049589,120]
[355871160,1741657850440,-439.83640367,0.00049589,120]
[355871161,1741657925429,646.32,0.0004,14]
[355871169,1741658315445,777.52,0.00027,60]
[355871182,1741658751674,-640.07770636,0.00028011,2]
[355871183,1741658827084,-176.98002648,0.00028011,2]
[355871184,1741658827107,-44.30505824,0.0003,30]
[355871185,1741658830138,968.53322222,0.00026,3]
[355871186,1741658838119,-269.80223676,0.0003,2]
[355871187,1741658838695,994.00211609,0.00026,3]
[355871188,1741658843100,-186.27861983,0.0003,2]
[355871193,1741658875082,1248.0,0.00027,60]
[355871194,1741658945120,-150.0,0.000279,2]
[355871195,1741658945157,-201.12172738,0.000299,2]
[355871196,1741658945195,-2517.31548537,0.00029999,2]
[355871197,1741658945233,-500.0,0.00029999,2]
[355871198,1741658945272,-500.0,0.00029999,2]
[355871199,1741658945311,-500.0,0.00029999,2]
[355871200,1741658945348,-500.0,0.00029999,2]
[355871201,1741658945385,-355.8386468,0.00029999,2]
[355871202,1741658945424,-500.0,0.00029999,2]
[355871203,1741658945463,-500.0,0.00029999,2]
[355871204,1741658945501,-500.0,0.00029999,2]
[355871205,1741658945539,-500.0,0.00029999,2]
[355871206,1741658945577,-500.0,0.00029999,2]
[355871207,1741658945611,-49543.91914341,0.0003,2]
[355871208,1741658945650,-455.69494176,0.0003,30]
[355871209,1741658945684,-500.0,0.0003,30]
[355871210,1741658945720,-451.16537972,0.00035616,2]
[355871211,1741658945754,-159.567191,0.0003589,2]
[355871212,1741658945788,-163.2343304,0.00037288,120]
[355871213,1741658945823,-5950.2343296,0.00038961,2]
[355871214,1741658945856,-764.41241806,0.0004,15]
[355871215,1741658945890,-159.567191,0.00042209,2]
[355871216,1741658945921,-500.0,0.00042493,120]
[355871217,1741658945945,-500.0,0.00043504,120]
[355871218,1741659003065,160.0,0.0003,10]
[355871233,1741659031932,-523.89464456,0.00044512,120]
[355871234,1741659031942,-348.91,0.0004457,120]
[355871235,1741659031953,-197.3,0.0004457,120]
[355871237,1741659031963,-220.69551008,0.00044968,120]
[355871239,1741659031973,-25720.3658943,0.0004499,3]
[355871241,1741659031982,-160.0,0.0004499,3]
[355871243,1741659031992,-2999.51018071,0.0004499,3]
[355871245,1741659032003,-471.17816063,0.00044999,31]
[355871247,1741659032012,-402.84727127,0.00044999,120]
[355871249,1741659032021,-164.92848947,0.00044999,120]
[355871250,1741659032031,-10000.77,0.00045,120]
[355871252,1741659032040,-12486.06594011,0.00045,120]
[355871302,1741659037878,-539.53762742,0.00044999,2]
[355871303,1741659037888,-22654.06184126,0.00045,120]
[355871304,1741659037898,-500.0,0.00045014,120]
[355871305,1741659037909,-500.0,0.00045068,120]
[355871306,1741659037919,-500.0,0.00045096,120]
[355871307,1741659037929,-416.66666667,0.00045766,2]
[355871308,1741659037939,-15568.29314569,0.00045766,2]
[355871309,1741659037949,-167.215,0.00045787,75]
[355871310,1741659037960,-500.0,0.00045799,120]
[355871311,1741659037970,-1772.3,0.0004698,10]
[355871312,1741659037981,-500.0,0.00046986,120]
[355871313,1741659037991,-329.82471244,0.00046989,31]
[355871314,1741659038002,-281.99308989,0.00046989,120]
[355871315,1741659038012,-25720.3658943,0.0004699,4]
[355871316,1741659038023,-165.68521461,0.00046992,2]
[355871317,1741659038034,-50000.0,0.00047,3]
[355871318,1741659038044,-160.0,0.00047,3]
[355871319,1741659038053,-160.0,0.00047,3]
[355871320,1741659038062,-158.49,0.00047092,30]
[355871321,1741659038072,-160.0,0.00047432,3]
[355871322,1741659038082,-25720.3658943,0.00047834,4]
[355871324,1741659038092,-500.0,0.00047844,120]
[355871326,1741659038102,-5211.27,0.00047844,120]
[355871328,1741659038111,-1000.0,0.00047863,2]
[355871330,1741659038121,-1023.2638689,0.00047863,2]
[355871332,1741659038131,-25720.3658943,0.0004789,4]
[355871334,1741659038141,-125954.11542,0.000479,30]
[355871336,1741659038151,-55555.0,0.000479,120]
[355871338,1741659038162,-500.0,0.00047959,120]
[355871340,1741659038172,-151.0,0.00047961,2]
[355871342,1741659038182,-600.0,0.00047961,2]
[355871344,1741659038191,-308.11705444,0.00047973,7]
[355871346,1741659038201,-648.95020672,0.00047973,7]
[355871348,1741659038212,-500.0,0.00047973,10]
[355871350,1741659038222,-500.0,0.00047973,10]
[355871352,1741659038232,-500.0,0.00047973,10]
[355871354,1741659038242,-511.0839197,0.00047979,2]
[355871356,1741659038251,-128601.829471,0.0004798,4]
[355871358,1741659038262,-25720.3658943,0.0004799,4]
[355871360,1741659038272,-305435.01767481,0.0004799,30]
[355871362,1741659038282,-222000.0,0.0004799,2]
[355871364,1741659038292,-10000.0,0.00048,7]
[355871366,1741659038302,-76465.0,0.00048,7]
[355871367,1741659038312,-30000.0,0.00048,8]
[355871368,1741659038321,-392.15,0.00048,30]
[355871369,1741659038331,-4071.57,0.00048,30]
[355871370,1741659038342,-1035.32681031,0.00048,66]
[355871371,1741659038352,-160.0,0.00048,7]
[355871372,1741659038362,-398.0,0.00048077,2]
[355871373,1741659038372,-94300.55278548,0.000481,7]
[355871374,1741659038837,-71.11974515,0.000481,7]
[355871375,1741659038866,-689.32,0.000481,7]
[355871398,1741659039866,-302.38100002,0.000481,7]
[355871409,1741659039965,-4636.62646935,0.000481,7]
[355871411,1741659039975,-3000.0,0.000481,2]
[355871412,1741659039986,-160.0,0.000481,7]
[355871413,1741659039996,-500.0,0.00048156,10]
[355871414,1741659040006,-500.0,0.00048173,10]
[355871415,1741659040015,-500.0,0.00048173,10]
[355871416,1741659040025,-500.0,0.00048173,10]
[355871417,1741659040035,-500.0,0.00048173,10]
[355871418,1741659040045,-40703.37353065,0.000482,7]
[355871433,1741659040207,-24.58723164,0.000482,7]
[355871486,1741659043010,-3375.0000005,0.000482,7]
[355871487,1741659043022,-2907.7865542,0.000482,7]
[355871507,1741659045837,-1476.91,0.0004819,10]
[355871508,1741659045848,-2496.826775,0.000482,7]
[355871509,1741659045908,-79651.05686246,0.000482,7]
[355871510,1741659045921,-41736.88952468,0.000482,7]
[355871511,1741659045931,-386.6,0.000482,30]
[355871512,1741659045940,-41676.51047529,0.000482,7]
[355871513,1741659045953,-42496.17,0.000482,7]
[355871514,1741659045966,-2844.35196281,0.000482,7]
[355871515,1741659045987,-10942.42926896,0.000482,7]
[355871516,1741659045998,-1600.0,0.000482,7]
[355871517,1741659046110,-29.97802631,0.000482,7]
[355871538,1741660036124,-160.105717,0.0003589,2]
[355871539,1741660036148,-5000.0,0.000395,80]
[355871540,1741660036171,-158.55098,0.00040561,120]
[355871541,1741660036195,-160.105717,0.0004263,2]
[355871542,1741660036219,-1749.31223699,0.00043,90]
[355871547,1741660147091,-5946.21649165,0.0003,60]
[355871548,1741660149092,-6364.95036951,0.0003,60]
[355871549,1741660149113,-253.67419502,0.0003,60]
[355871550,1741660149134,-2944.07786849,0.00031,120]
[355871551,1741660149154,-409.66627867,0.000325,30]
[355871552,1741660149175,-1151.53980333,0.00035,120]
[355871553,1741660149197,-2036.11559975,0.00036898,120]
[355871554,1741660149218,-169.41502415,0.00038,2]
[355871555,1741660149239,-9952.92383629,0.0004,30]
[355871556,1741660153124,-120842.1469071,0.0004,30]
[355871557,1741660156105,-248125.4575252,0.0004,30]
[355871558,1741660159094,-16326.84749874,0.0004,30]
[355871559,1741660159143,-97509.55428264,0.0004,30]
[355871560,1741660159168,-151.54433336,0.0004,120]
[355871561,1741660159192,-206.75990476,0.0004,7]
[355871562,1741660159218,-247.04,0.0004,30]
[355871563,1741660159242,-323.06,0.0004,30]
[355871564,1741660159267,-3664.42,0.0004,30]
[355871565,1741660159290,-1994.46358269,0.00042785,19]